fUST/lending_fUST_20250103
["ID","MTS","AMOUNT","RATE_DAILY","PERIOD"]
[347497393,1735877443906,-754.97,0.00019726,3]
[347497394,1735877443916,-1248.46,0.00019726,3]
[347497395,1735877443925,-2827.51,0.00019726,3]
[347497396,1735877443934,-570.18,0.00019726,3]
[347497397,1735877443943,-990.36,0.00019726,3]
[347497398,1735877443953,-699.31,0.00019726,3]
[347497399,1735877443962,-500.0,0.00019726,3]
[347497400,1735877443971,-380.75779213,0.00019726,3]
[347497401,1735877443983,-119.24220787,0.00019726,3]
[347497402,1735877443997,-500.0,0.00019726,3]
[347497403,1735877444007,-50.61069244,0.00019726,3]
[347497422,1735877446758,-449.38930756,0.00019726,3]
[347497423,1735877446768,-1126.67,0.00019726,3]
[347497424,1735877446776,-581.99,0.00019726,3]
[347497425,1735877446786,-1778.15,0.00019726,3]
[347497426,1735877446795,-1075.91,0.00019726,3]
[347497427,1735877446804,-6463.31,0.00019726,3]
[347497428,1735877446815,-907.68,0.00019726,3]
[347497429,1735877446824,-500.0,0.00019726,3]
[347497430,1735877446834,-532.97,0.00019726,3]
[347497431,1735877446843,-500.0,0.00019726,3]
[347497432,1735877446852,-1987.78,0.00019726,3]
[347497433,1735877446862,-867.65,0.00019726,3]
[347497434,1735877446871,-500.0,0.00019726,3]
[347497435,1735877446880,-1784.67,0.00019726,3]
[347497436,1735877446889,-500.0,0.00019726,3]
[347497437,1735877446898,-901.12,0.00019726,3]
[347497438,1735877446908,-500.0,0.00019726,3]
[347497439,1735877446917,-813.79,0.00019726,3]
[347497440,1735877446926,-993.34,0.00019726,3]
[347497441,1735877446936,-1935.48,0.00019726,3]
[347497442,1735877446946,-1744.67,0.00019726,3]
[347497443,1735877446955,-500.0,0.00019726,3]
[347497444,1735877446964,-500.0,0.00019726,3]
[347497445,1735877446974,-174.202041,0.00019726,2]
[347497446,1735877446984,-174.202041,0.00019726,2]
[347497447,1735877446996,-1039.79,0.00019727,3]
[347497448,1735877447005,-500.0,0.00019781,2]
[347497449,1735877447015,-151.0,0.000198,2]
[347497450,1735877447024,-151.0,0.000198,2]
[347497451,1735877447035,-151.0,0.000198,2]
[347497452,1735877447044,-151.0,0.000198,2]
[347497453,1735877447056,-1852.10622659,0.0001988,2]
[347497454,1735877447066,-151.0,0.000199,2]
[347497455,1735877447075,-289.250468,0.000199,2]
[347497456,1735877447084,-289.250468,0.000199,2]
[347497457,1735877447094,-552.318228,0.000199,2]
[347497458,1735877447103,-552.318228,0.000199,2]
[347497459,1735877447112,-151.0,0.000199,2]
[347497460,1735877447122,-154.8340894,0.00019918,2]
[347497461,1735877447131,-484.0,0.0001999,2]
[347497462,1735877447139,-1039.79,0.00019999,3]
[347497463,1735877447150,-1039.79,0.00019999,3]
[347497464,1735877447159,-1039.79,0.00019999,3]
[347497465,1735877447168,-1039.79,0.00019999,3]
[347497466,1735877447178,-1039.79,0.00019999,3]
[347497467,1735877447188,-1039.80810354,0.00019999,3]
[347497468,1735877447198,-151.0,0.0002,2]
[347497469,1735877447208,-151.0,0.0002,2]
[347497470,1735877447219,-4368.28,0.0002,3]
[347497471,1735877447228,-809.799703,0.0002,2]
[347497472,1735877447237,-809.799703,0.0002,2]
[347497473,1735877447247,-293.325426,0.0002,2]
[347497474,1735877447256,-151.0,0.0002,2]
[347497475,1735877447265,-602.43172518,0.0002,3]
[347497476,1735877447273,-151.0,0.0002,2]
[347497477,1735877447283,-500.0,0.0002,3]
[347497478,1735877447292,-500.0,0.0002,3]
[347497479,1735877447301,-500.0,0.0002,3]
[347497480,1735877447309,-151.0,0.0002,2]
[347497481,1735877447321,-7718.0,0.0002,2]
[347497482,1735877447330,-500.0,0.0002,3]
[347497483,1735877447339,-500.0,0.0002,3]
[347497484,1735877447348,-500.0,0.0002,3]
[347497485,1735877447359,-341.840284,0.0002,2]
[347497486,1735877447368,-341.840284,0.0002,2]
[347497487,1735877447378,-500.0,0.0002,3]
[347497488,1735877447387,-517.91,0.0002,3]
[347497489,1735877447396,-500.0,0.0002,3]
[347497490,1735877447407,-796.35,0.0002,3]
[347497491,1735877447417,-500.0,0.0002,3]
[347497492,1735877447427,-151.0,0.0002,2]
[347497493,1735877447437,-799.97,0.0002,3]
[347497494,1735877447445,-899.72,0.0002,3]
[347497495,1735877447455,-500.0,0.0002,3]
[347497496,1735877447464,-556.18,0.0002,3]
[347497497,1735877447473,-525.66,0.0002,3]
[347497498,1735877447482,-500.0,0.0002,3]
[347497499,1735877447490,-500.0,0.0002,3]
[347497500,1735877447499,-500.0,0.0002,3]
[347497501,1735877447508,-500.0,0.0002,3]
[347497502,1735877447516,-500.0,0.0002,3]
[347497503,1735877447525,-355.721939,0.0002,2]
[347497504,1735877447533,-500.0,0.0002,3]
[347497505,1735877447543,-355.721939,0.0002,2]
[347497506,1735877447552,-503.44053095,0.0002,3]
[347497507,1735877447560,-500.0,0.0002,3]
[347497508,1735877447569,-3133.34,0.0002,3]
[347497509,1735877447578,-500.0,0.0002,3]
[347497510,1735877447587,-500.0,0.0002,3]
[347497511,1735877447596,-543.17,0.0002,3]
[347497512,1735877447604,-500.0,0.0002,3]
[347497513,1735877447613,-500.0,0.0002,3]
[347497514,1735877447622,-500.0,0.0002,3]
[347497515,1735877447631,-342.55343065,0.0002,3]
[347497516,1735877447640,-3382.97,0.0002,3]
[347497517,1735877447650,-151.0,0.0002,2]
[347497518,1735877447659,-500.0,0.0002,3]
[347497519,1735877447668,-1075.76,0.0002,3]
[347497520,1735877447677,-898.66,0.0002,3]
[347497521,1735877447686,-500.0,0.0002,3]
[347497522,1735877447695,-956.94,0.0002,3]
[347497523,1735877447704,-25911.43,0.0002,3]
[347497524,1735877447713,-1111.14,0.0002,3]
[347497525,1735877447721,-543.83,0.0002,3]
[347497526,1735877447730,-596.15,0.0002,3]
[347497527,1735877447739,-754.97,0.0002,3]
[347497528,1735877447749,-1248.46,0.0002,3]
[347497529,1735877447758,-2827.51,0.0002,3]
[347497530,1735877447767,-570.18,0.0002,3]
[347497531,1735877447776,-990.36,0.0002,3]
[347497532,1735877447785,-699.31,0.0002,3]
[347497533,1735877447795,-500.0,0.0002,3]
[347497534,1735877447804,-500.0,0.0002,3]
[347497535,1735877447812,-500.0,0.0002,3]
[347497536,1735877447822,-571.02,0.0002,3]
[347497537,1735877447830,-1126.67,0.0002,3]
[347497538,1735877447841,-581.99,0.0002,3]
[347497539,1735877447850,-1778.15,0.0002,3]
[347497540,1735877447859,-1075.91,0.0002,3]
[347497541,1735877447868,-907.68,0.0002,3]
[347497542,1735877447878,-6463.31,0.0002,3]
[347497543,1735877447887,-500.0,0.0002,3]
[347497544,1735877447896,-532.97,0.0002,3]
[347497545,1735877447906,-500.0,0.0002,3]
[347497546,1735877447915,-1987.78,0.0002,3]
[347497547,1735877447925,-867.65,0.0002,3]
[347497548,1735877447934,-1784.67,0.0002,3]
[347497549,1735877447943,-500.0,0.0002,3]
[347497550,1735877447952,-500.0,0.0002,3]
[347497551,1735877447961,-901.12,0.0002,3]
[347497552,1735877447970,-500.0,0.0002,3]
[347497553,1735877447979,-813.79,0.0002,3]
[347497554,1735877447990,-993.34,0.0002,3]
[347497555,1735877448000,-1935.48,0.0002,3]
[347497556,1735877448009,-1744.67,0.0002,3]
[347497557,1735877448018,-500.0,0.0002,3]
[347497558,1735877448027,-500.0,0.0002,3]
[347497559,1735877448037,-174.202041,0.0002,2]
[347497560,1735877448046,-174.202041,0.0002,2]
[347497561,1735877448055,-151.0,0.000201,4]
[347497562,1735877448067,-151.0,0.000201,3]
[347497563,1735877448076,-151.0,0.000201,3]
[347497564,1735877448085,-151.0,0.000202,3]
[347497565,1735877448094,-151.0,0.000202,3]
[347497566,1735877448103,-618.0,0.000202,2]
[347497567,1735877448113,-151.0,0.000202,4]
[347497568,1735877448122,-289.250468,0.0002021,2]
[347497569,1735877448131,-289.250468,0.0002021,2]
[347497570,1735877448142,-552.318228,0.0002021,2]
[347497571,1735877448153,-552.318228,0.0002021,2]
[347497572,1735877448162,-1136.80420516,0.00020273,3]
[347497573,1735877448379,-3231.47579484,0.00020273,3]
[347497574,1735877448388,-151.0,0.00020273,2]
[347497575,1735877448398,-151.0,0.00020273,2]
[347497576,1735877448407,-1398.820419,0.00020273,2]
[347497577,1735877448416,-1398.820419,0.00020273,2]
[347497578,1735877448426,-500.0,0.00020273,3]
[347497579,1735877448435,-500.0,0.00020273,3]
[347497580,1735877448444,-151.0,0.00020273,2]
[347497581,1735877448454,-500.0,0.00020273,3]
[347497582,1735877448463,-394.026675,0.00020273,2]
[347497583,1735877448472,-394.026675,0.00020273,2]
[347497584,1735877448483,-500.0,0.00020273,3]
[347497585,1735877448492,-500.0,0.00020273,3]
[347497586,1735877448502,-500.0,0.00020273,3]
[347497587,1735877448512,-341.840284,0.00020273,2]
[347497588,1735877448521,-341.840284,0.00020273,2]
[347497589,1735877448530,-229.27806065,0.00020273,3]
[347497600,1735877890599,395.462963,0.00013973,2]
[347497647,1735878631981,-2900.0,0.00016732,2]
[347497648,1735878631991,-2900.0,0.00016901,2]
[347497649,1735878632000,-300.0,0.00016999,2]
[347497650,1735878632010,-444.59350603,0.00017,2]
[347497651,1735878632023,-8070.38555857,0.00017,2]
[347497652,1735878632033,-2031.29761951,0.000176,2]
[347497653,1735878632043,-756.6198535,0.00017736,2]
[347497654,1735878632051,-15848.21859442,0.00018,2]
[347497655,1735878632061,-9351.04189122,0.00018016,2]
[347497688,1735878637788,-8980.51059498,0.00018016,2]
[347497690,1735878637798,-238.322702,0.00018016,2]
[347497692,1735878637808,-420.0,0.00018567,2]
[347497694,1735878637817,-181.279,0.00018578,2]
[347497696,1735878637826,-154.47943771,0.00019078,2]
[347497698,1735878637836,-501.29688798,0.00019173,2]
[347497700,1735878637845,-154.48,0.00019173,2]
[347497702,1735878637854,-322.23083845,0.00019173,2]
[347497705,1735878637864,-500.0,0.00019173,2]
[347497707,1735878637873,-355.1900837,0.00019173,2]
[347497709,1735878637882,-501.02069962,0.00019173,2]
[347497710,1735878637891,-500.0,0.00019173,2]
[347497713,1735878637901,-500.0,0.00019173,2]
[347497715,1735878637910,-2496.41,0.00019178,2]
[347497717,1735878637919,-500.0,0.00019178,2]
[347497719,1735878637930,-1516.39,0.00019178,2]
[347497721,1735878637939,-502.28825239,0.00019178,2]
[347497723,1735878637948,-500.0,0.00019178,2]
[347497725,1735878637959,-501.36225611,0.00019178,2]
[347497727,1735878637968,-506.71743847,0.00019178,2]
[347497729,1735878637977,-832.22,0.00019178,2]
[347497731,1735878637986,-301.84636641,0.00019178,2]
[347497733,1735878637996,-506.04384893,0.00019178,2]
[347497735,1735878638005,-414.41690903,0.00019178,2]
[347497737,1735878638014,-198.25231518,0.00019178,2]
[347497739,1735878638023,-500.0,0.00019178,2]
[347497741,1735878638033,-500.0,0.00019178,2]
[347497743,1735878638042,-500.0,0.00019178,2]
[347497745,1735878638052,-500.0,0.00019178,2]
[347497747,1735878638062,-500.0,0.00019178,2]
[347497749,1735878638071,-500.0,0.00019178,2]
[347497751,1735878638080,-500.0,0.00019178,2]
[347497753,1735878638089,-500.0,0.00019178,2]
[347497755,1735878638099,-500.0,0.00019178,2]
[347497757,1735878638110,-500.0,0.00019178,2]
[347497759,1735878638119,-500.0,0.00019178,2]
[347497761,1735878638128,-504.13056782,0.00019178,2]
[347497763,1735878638138,-509.71389318,0.00019178,2]
[347497765,1735878638148,-500.0,0.00019178,2]
[347497767,1735878638158,-503.35608707,0.00019178,2]
[347497769,1735878638168,-726.12,0.00019178,2]
[347497771,1735878638177,-320.94621457,0.00019178,2]
[347497774,1735878638188,-501.87075815,0.00019178,2]
[347497776,1735878638197,-500.96626995,0.00019178,2]
[347497778,1735878638206,-500.0,0.00019178,2]
[347497780,1735878638216,-350.00512858,0.00019178,2]
[347497782,1735878638227,-502.75305545,0.00019178,2]
[347497784,1735878638237,-812.26,0.00019178,2]
[347497786,1735878638247,-502.54983985,0.00019178,2]
[347497787,1735878638256,-501.86451496,0.00019178,2]
[347497789,1735878638266,-509.06892335,0.00019178,2]
[347497792,1735878638275,-584.91122004,0.00019178,2]
[347497793,1735878638285,-729.14,0.00019178,2]
[347497796,1735878638294,-3860.0,0.00019178,2]
[347497798,1735878638304,-500.0,0.00019178,2]
[347497800,1735878638313,-412.6465803,0.00019178,2]
[347497802,1735878638326,-87.3534197,0.00019178,2]
[347497804,1735878638335,-528.2,0.00019178,2]
[347497806,1735878638345,-525.99,0.00019178,2]
[347497808,1735878638354,-502.37781567,0.00019178,2]
[347497810,1735878638364,-500.0,0.00019178,2]
[347497812,1735878638373,-500.0,0.00019178,2]
[347497814,1735878638382,-389.72404294,0.00019178,2]
[347497817,1735878638398,-110.27595706,0.00019178,2]
[347497819,1735878638407,-245.0475034,0.00019178,2]
[347497821,1735878638418,-254.9524966,0.00019178,2]
[347497823,1735878638428,-824.17362854,0.00019178,2]
[347497968,1735878639819,-500.0,0.00019178,2]
[347497970,1735878639829,-500.0,0.00019178,2]
[347497972,1735878639839,-500.0,0.00019178,2]
[347497974,1735878639848,-500.0,0.00019178,2]
[347497976,1735878639857,-1487.22,0.00019178,2]
[347497978,1735878639866,-500.0,0.00019178,2]
[347497980,1735878639876,-500.0,0.00019178,2]
[347497982,1735878639886,-813.44,0.00019178,2]
[347497985,1735878639895,-539.55,0.00019178,2]
[347497986,1735878639905,-1694.08,0.00019178,2]
[347497989,1735878639915,-500.0,0.00019178,2]
[347497991,1735878639924,-500.0,0.00019178,2]
[347497993,1735878639934,-500.0,0.00019178,2]
[347497994,1735878639943,-557.15867209,0.00019178,2]
[347497997,1735878639953,-500.0,0.00019178,2]
[347497999,1735878639962,-500.0,0.00019178,2]
[347498001,1735878639972,-500.0,0.00019178,2]
[347498003,1735878639982,-500.0,0.00019178,2]
[347498004,1735878639991,-500.0,0.00019178,2]
[347498007,1735878640001,-500.0,0.00019178,2]
[347498009,1735878640010,-958.96,0.00019178,2]
[347498010,1735878640019,-859.95,0.00019178,2]
[347498012,1735878640028,-500.0,0.00019178,2]
[347498014,1735878640038,-500.0,0.00019178,2]
[347498016,1735878640047,-500.0,0.00019178,2]
[347498017,1735878640056,-988.45,0.00019178,2]
[347498018,1735878640066,-508.94990707,0.00019178,2]
[347498019,1735878640075,-23045.02,0.00019178,2]
[347498020,1735878640084,-1102.88,0.00019178,2]
[347498021,1735878640093,-500.0,0.00019178,2]
[347498022,1735878640102,-887.8,0.00019178,2]
[347498023,1735878640111,-2611.12,0.00019178,2]
[347498024,1735878640120,-582.76,0.00019178,2]
[347498025,1735878640129,-500.0,0.00019178,2]
[347498026,1735878640138,-500.0,0.00019178,2]
[347498027,1735878640147,-712.47,0.00019178,2]
[347498028,1735878640157,-520.79,0.00019178,2]
[347498029,1735878640166,-500.0,0.00019178,2]
[347498030,1735878640175,-704.16,0.00019178,2]
[347498031,1735878640185,-6020.71,0.00019178,2]
[347498032,1735878640194,-537.72078595,0.00019178,2]
[347498033,1735878640204,-3008.81,0.00019178,2]
[347498034,1735878640213,-500.0,0.00019178,2]
[347498035,1735878640222,-500.0,0.00019178,2]
[347498036,1735878640231,-500.0,0.00019178,2]
[347498037,1735878640240,-569.83,0.00019178,2]
[347498038,1735878640249,-504.35135708,0.00019178,2]
[347498039,1735878640258,-500.0,0.00019178,2]
[347498040,1735878640267,-514.49926321,0.00019178,2]
[347498041,1735878640277,-508.90247428,0.00019178,2]
[347498042,1735878640287,-504.83556762,0.00019178,2]
[347498043,1735878640296,-550.81,0.00019178,2]
[347498044,1735878640305,-723.04,0.00019178,2]
[347498045,1735878640314,-550.81,0.00019178,2]
[347498046,1735878640323,-550.81,0.00019178,2]
[347498047,1735878640332,-550.81,0.00019178,2]
[347498048,1735878640342,-550.81,0.00019178,2]
[347498049,1735878640351,-504.42001881,0.00019178,2]
[347498050,1735878640360,-1742.64,0.00019178,2]
[347498051,1735878640369,-500.0,0.00019178,2]
[347498052,1735878640379,-500.0,0.00019178,2]
[347498053,1735878640388,-500.0,0.00019178,2]
[347498054,1735878640398,-500.0,0.00019178,2]
[347498055,1735878640407,-500.0,0.00019178,2]
[347498056,1735878640416,-1024.72,0.00019178,2]
[347498057,1735878640426,-500.0,0.00019178,2]
[347498058,1735878640436,-1565.13,0.00019178,2]
[347498059,1735878640445,-500.0,0.00019178,2]
[347498060,1735878640455,-678.16,0.00019178,2]
[347498061,1735878640464,-500.0,0.00019178,2]
[347498062,1735878640474,-500.0,0.00019178,2]
[347498063,1735878640484,-979.92,0.00019178,2]
[347498064,1735878640493,-364.99264864,0.00019178,2]
[347498065,1735878640502,-540.85934747,0.00019178,2]
[347498066,1735878640512,-500.0,0.00019178,2]
[347498067,1735878640521,-500.0,0.00019178,2]
[347498068,1735878640530,-805.39,0.00019178,2]
[347498069,1735878640543,-170.3068,0.00019178,2]
[347498070,1735878640553,-500.0,0.00019451,2]
[347498071,1735878640562,-434.15008325,0.00019451,2]
[347498072,1735878640572,-500.0,0.00019451,2]
[347498073,1735878640581,-500.0,0.00019451,2]
[347498074,1735878640590,-231.94410306,0.00019451,2]
[347498075,1735878640600,-550.81,0.00019451,3]
[347498076,1735878640610,-550.81,0.00019451,3]
[347498077,1735878640619,-550.81,0.00019451,3]
[347498078,1735878640629,-550.81,0.00019451,3]
[347498079,1735878640643,-2496.41,0.00019452,3]
[347498080,1735878640652,-500.0,0.00019452,3]
[347498081,1735878640662,-1516.39,0.00019452,3]
[347498082,1735878640835,-500.0,0.00019452,3]
[347498083,1735878640845,-832.22,0.00019452,3]
[347498084,1735878640854,-500.0,0.00019452,3]
[347498085,1735878640863,-500.0,0.00019452,3]
[347498086,1735878640872,-500.0,0.00019452,3]
[347498087,1735878640882,-500.0,0.00019452,3]
[347498088,1735878640891,-500.0,0.00019452,3]
[347498089,1735878640900,-500.0,0.00019452,3]
[347498090,1735878640910,-260.22811801,0.00019452,3]
[347498091,1735878640919,-500.0,0.00019452,3]
[347498092,1735878640928,-420.11570743,0.00019452,3]
[347498093,1735878640941,-79.88429257,0.00019452,3]
[347498094,1735878640950,-500.0,0.00019452,3]
[347498095,1735878640959,-500.0,0.00019452,3]
[347498096,1735878640968,-500.0,0.00019452,3]
[347498097,1735878640978,-726.12,0.00019452,3]
[347498098,1735878640987,-812.26,0.00019452,3]
[347498099,1735878640996,-729.14,0.00019452,3]
[347498100,1735878641005,-3860.0,0.00019452,3]
[347498101,1735878641014,-500.0,0.00019452,3]
[347498103,1735878641023,-500.0,0.00019452,3]
[347498104,1735878641033,-525.99,0.00019452,3]
[347498105,1735878641042,-500.0,0.00019452,3]
[347498106,1735878641051,-500.0,0.00019452,3]
[347498107,1735878641060,-532.25924264,0.00019452,3]
[347498108,1735878641070,-500.0,0.00019452,3]
[347498109,1735878641079,-500.0,0.00019452,3]
[347498110,1735878641088,-500.0,0.00019452,3]
[347498111,1735878641097,-500.0,0.00019452,3]
[347498112,1735878641106,-1487.22,0.00019452,3]
[347498113,1735878641115,-500.0,0.00019452,3]
[347498114,1735878641124,-813.44,0.00019452,3]
[347498115,1735878641134,-1694.08,0.00019452,3]
[347498116,1735878641143,-500.0,0.00019452,3]
[347498117,1735878641152,-500.0,0.00019452,3]
[347498118,1735878641161,-500.0,0.00019452,3]
[347498119,1735878641170,-500.0,0.00019452,3]
[347498120,1735878641179,-500.0,0.00019452,3]
[347498121,1735878641188,-958.96,0.00019452,3]
[347498122,1735878641198,-859.95,0.00019452,3]
[347498123,1735878641207,-500.0,0.00019452,3]
[347498124,1735878641216,-500.0,0.00019452,3]
[347498125,1735878641225,-988.45,0.00019452,3]
[347498126,1735878641235,-23045.02,0.00019452,3]
[347498127,1735878641244,-1102.88,0.00019452,3]
[347498128,1735878641253,-500.0,0.00019452,3]
[347498129,1735878641263,-887.8,0.00019452,3]
[347498130,1735878641272,-2611.12,0.00019452,3]
[347498131,1735878641281,-582.76,0.00019452,3]
[347498132,1735878641293,-500.0,0.00019452,3]
[347498133,1735878641303,-500.0,0.00019452,3]
[347498134,1735878641314,-712.47,0.00019452,3]
[347498135,1735878641323,-520.79,0.00019452,3]
[347498136,1735878641332,-704.16,0.00019452,3]
[347498137,1735878641341,-3008.81,0.00019452,3]
[347498138,1735878641350,-6020.71,0.00019452,3]
[347498139,1735878641359,-500.0,0.00019452,3]
[347498140,1735878641369,-500.0,0.00019452,3]
[347498141,1735878641379,-500.0,0.00019452,3]
[347498142,1735878641388,-723.04,0.00019452,3]
[347498143,1735878641398,-1742.64,0.00019452,3]
[347498144,1735878641407,-500.0,0.00019452,3]
[347498145,1735878641417,-500.0,0.00019452,3]
[347498146,1735878641426,-500.0,0.00019452,3]
[347498147,1735878641435,-500.0,0.00019452,3]
[347498148,1735878641445,-1024.72,0.00019452,3]
[347498149,1735878641454,-500.0,0.00019452,3]
[347498150,1735878641463,-1565.13,0.00019452,3]
[347498151,1735878641472,-678.16,0.00019452,3]
[347498152,1735878641482,-500.0,0.00019452,3]
[347498153,1735878641491,-979.92,0.00019452,3]
[347498154,1735878641501,-500.0,0.00019452,2]
[347498155,1735878641510,-411.90014399,0.00019452,3]
[347498156,1735878641519,-504.54886665,0.00019473,2]
[347498157,1735878641529,-550.81,0.00019725,3]
[347498158,1735878641540,-550.81,0.00019725,3]
[347498159,1735878641549,-550.81,0.00019725,3]
[347498161,1735878641559,-2496.41,0.00019726,3]
[347498163,1735878641567,-500.0,0.00019726,3]
[347498165,1735878641577,-1516.39,0.00019726,3]
[347498167,1735878641586,-500.0,0.00019726,3]
[347498169,1735878641595,-832.22,0.00019726,3]
[347498171,1735878641605,-500.0,0.00019726,3]
[347498173,1735878641614,-500.0,0.00019726,3]
[347498175,1735878641623,-500.0,0.00019726,3]
[347498177,1735878641633,-151.0,0.00019726,2]
[347498178,1735878641644,-500.0,0.00019726,3]
[347498180,1735878641653,-500.0,0.00019726,3]
[347498182,1735878641662,-500.0,0.00019726,3]
[347498184,1735878641671,-331.390937,0.00019726,2]
[347498186,1735878641681,-331.390937,0.00019726,2]
[347498188,1735878641690,-500.0,0.00019726,3]
[347498190,1735878641699,-500.0,0.00019726,3]
[347498192,1735878641709,-500.0,0.00019726,3]
[347498194,1735878641718,-500.0,0.00019726,3]
[347498196,1735878641727,-979.174294,0.00019726,2]
[347498198,1735878641736,-500.0,0.00019726,3]
[347498200,1735878641746,-979.174294,0.00019726,2]
[347498202,1735878641755,-726.12,0.00019726,3]
[347498204,1735878641765,-812.26,0.00019726,3]
[347498206,1735878641774,-151.377614,0.00019726,2]
[347498208,1735878641784,-729.14,0.00019726,3]
[347498210,1735878641793,-3860.0,0.00019726,3]
[347498212,1735878641803,-500.0,0.00019726,3]
[347498214,1735878641812,-500.0,0.00019726,3]
[347498216,1735878641821,-525.99,0.00019726,3]
[347498218,1735878641831,-500.0,0.00019726,3]
[347498220,1735878641839,-500.0,0.00019726,3]
[347498221,1735878641849,-205.104171,0.00019726,2]
[347498222,1735878641858,-205.104171,0.00019726,2]
[347498224,1735878641867,-500.0,0.00019726,3]
[347498226,1735878641876,-151.0,0.00019726,2]
[347498228,1735878641886,-500.0,0.00019726,3]
[347498229,1735878641895,-500.0,0.00019726,3]
[347498230,1735878641904,-500.0,0.00019726,3]
[347498231,1735878641913,-1487.22,0.00019726,3]
[347498232,1735878641923,-500.0,0.00019726,3]
[347498234,1735878641932,-813.44,0.00019726,3]
[347498236,1735878641941,-1694.08,0.00019726,3]
[347498238,1735878641954,-500.0,0.00019726,3]
[347498240,1735878641963,-500.0,0.00019726,3]
[347498242,1735878641972,-500.0,0.00019726,3]
[347498244,1735878641981,-500.0,0.00019726,3]
[347498246,1735878641990,-500.0,0.00019726,3]
[347498247,1735878642000,-958.96,0.00019726,3]
[347498249,1735878642009,-859.95,0.00019726,3]
[347498251,1735878642018,-500.0,0.00019726,3]
[347498253,1735878642028,-500.0,0.00019726,3]
[347498255,1735878642038,-988.45,0.00019726,3]
[347498257,1735878642047,-23045.02,0.00019726,3]
[347498258,1735878642056,-1102.88,0.00019726,3]
[347498260,1735878642065,-500.0,0.00019726,3]
[347498262,1735878642075,-887.8,0.00019726,3]
[347498264,1735878642084,-2611.12,0.00019726,3]
[347498266,1735878642093,-582.76,0.00019726,3]
[347498268,1735878642102,-500.0,0.00019726,3]
[347498270,1735878642112,-500.0,0.00019726,3]
[347498271,1735878642121,-712.47,0.00019726,3]
[347498272,1735878642131,-520.79,0.00019726,3]
[347498273,1735878642140,-704.16,0.00019726,3]
[347498274,1735878642149,-3008.81,0.00019726,3]
[347498275,1735878642159,-6020.71,0.00019726,3]
[347498276,1735878642168,-500.0,0.00019726,3]
[347498277,1735878642178,-500.0,0.00019726,3]
[347498278,1735878642188,-500.0,0.00019726,3]
[347498279,1735878642198,-723.04,0.00019726,3]
[347498280,1735878642207,-1742.64,0.00019726,3]
[347498281,1735878642216,-500.0,0.00019726,3]
[347498282,1735878642225,-249.005357,0.00019726,2]
[347498283,1735878642235,-500.0,0.00019726,3]
[347498284,1735878642245,-249.005357,0.00019726,2]
[347498285,1735878642255,-500.0,0.00019726,3]
[347498286,1735878642264,-500.0,0.00019726,3]
[347498287,1735878642275,-1024.72,0.00019726,3]